Cogmind - Beta 14 @@@ ROGUE MODE // 2024.10.21 @ 19:50:57 Player: Tereza Result: Destroyed by G-47 Trooper with Particle Gun Performance ------------- Evolutions (2) 1000 Regions Visited (4) 800 Robots Destroyed (25) 125 Value Destroyed (875) 875 Prototype IDs (0) 0 Alien Tech Used (0) 0 Bonus (0) 0 TOTAL SCORE: 2800 Bonus ------- None Cogmind --------- Core Integrity 0/550 Matter 250/300 Energy 99/100 System Corruption 0% Temperature Cool (9) Movement Core (400) Ox7 Location -8/Materials Parts ------- > --- POWER (1) -------- (None) > --- PROPULSION (2) --- (None) > --- UTILITY (6) ------ Large Storage Unit Improved Targeting Computer Melee Analysis Suite > --- WEAPON (2) ------- High-powered Shotgun > --- INVENTORY (15) --- Light Angular Momentum Engine Armored Wheel Flight Unit Flight Unit Improved Heat Sink Signal Interpreter Hacking Suite System Restoration Module Small Laser Small Laser Beam Rifle Light Assault Rifle Mining Laser Peak State ------------ > --- POWER ------------ Light Deuterium Engine > --- PROPULSION ------- Aluminum Leg Titanium Leg > --- UTILITY ---------- Large Storage Unit Structural Scanner Targeting Computer Melee Analysis Suite Core Shielding Core Shielding > --- WEAPON ----------- Shock Rifle Katana > --- INVENTORY -------- Light Nuclear Core Light Angular Momentum Engine Aluminum Leg Carbon-fiber Leg Flight Unit Flight Unit Improved Heat Sink Small Storage Unit Signal Interpreter System Restoration Module Small Laser Small Laser Light Assault Rifle High-powered Shotgun Mining Laser [Rating: 24] Favorites ----------- Power Light Deuterium Engine Engine Light Deuterium Engine Power Core Light Nuclear Core Propulsion Light Treads Treads Light Treads Leg Aluminum Leg Wheel Wheel Utility Core Shielding Device Structural Scanner Storage Large Storage Unit Processor Melee Analysis Suite Protection Core Shielding Weapon EM Pulse Gun Energy Gun EM Pulse Gun Ballistic Gun Light Assault Rifle Ballistic Cannon Light Cannon Slashing Weapon Katana Build | -11 -10 -9 -9 -8 ------- Run | Yrd Mat Mat Min Mat Slots Evolved 4 | . . 2 . 2 Power . | . . . . . Propulsion . | . . . . . Utility 4 | . . 2 . 2 Weapon . | . . . . . Parts Attached 33 | 5 2 2 9 15 Power 4 | . 1 . 1 2 Engine 3 | . 1 . 1 1 Core 1 | . . . . 1 Reactor . | . . . . . Propulsion 11 | 2 . . 3 6 Treads 2 | 2 . . . . Leg 5 | . . . 2 3 Wheel 4 | . . . 1 3 Hover . | . . . . . Flight . | . . . . . Utility 9 | 1 1 2 1 4 Device 2 | . . 1 . 1 Storage 2 | 1 1 . . . Processor 3 | . . . . 3 Hackware . | . . . . . Protection 2 | . . 1 1 . Artifact . | . . . . . Weapon 9 | 2 . . 4 3 Energy Gun 4 | 2 . . 1 1 Energy Cannon . | . . . . . Ballistic Gun 3 | . . . 2 1 Ballistic Cannon 1 | . . . 1 . Launcher . | . . . . . Special Weapon . | . . . . . Impact Weapon . | . . . . . Slashing Weapon 1 | . . . . 1 Piercing Weapon . | . . . . . Special Melee Weapon . | . . . . . Unidentified Prototypes . | . . . . . Parts Lost 19 | . . . 7 12 Power 3 | . . . 1 2 Propulsion 7 | . . . 3 4 Utility 4 | . . . 1 3 Weapon 5 | . . . 2 3 Highest Loss Streak 8 | . . . 3 8 To Critical Strikes . | . . . . . Average Slot Usage (%) 82 | . 80 88 77 85 Engine 7 | . 9 11 6 6 Treads 10 | . 28 22 9 . Leg 8 | . . . 7 15 Wheel 1 | . . . 2 1 Device 4 | . . 11 1 8 Storage 10 | . 14 11 11 9 Processor 5 | . . . . 12 Protection 12 | . . 11 17 17 Energy Gun 10 | . 28 22 8 1 Ballistic Gun 3 | . . . 9 1 Ballistic Cannon 2 | . . . 3 2 Slashing Weapon 3 | . . . . 7 Peak Build Rating 24 | 5 7 9 11 24 Average Rating 11 | 3 5 8 8 18 On Entrance 6 | . 5 7 9 11 Naked Turns . | . . . . . Heaviest Build 33 | 8 28 30 30 33 Greatest Support 40 | 40 40 40 40 27 Greatest Overweight (x) 7 | 1 . . 2 7 Average Overweight (x) . | . . . . 1 Largest Inventory Capacity 15 | 8 15 15 15 15 Average Capacity 13 | 7 9 15 15 15 Most Carried 15 | 8 15 14 15 15 Average Carried 12 | 6 9 13 13 14 Final Capacity 15 | 8 15 15 15 15 Final Carried 15 | 7 15 13 15 13 Class Distribution -------------------- 100% | Mutant Dominant Class ---------------- Mutant | -10/Materials Mutant | -9/Materials Mutant | -9/Mines Mutant | -8/Materials Resources | -11 -10 -9 -9 -8 ----------- Run | Yrd Mat Mat Min Mat Matter Collected 461 | 250 20 . 99 92 Remotely . | . . . . . Salvage Created 997 | 67 189 20 69 652 Parts 48 | 3 15 1 3 26 Haulers Intercepted . | . . . . . Recyclers Shooed . | . . . . . Parts Field Recycled . | . . . . . Retrieved Matter . | . . . . . Parts Self-Destructed . | . . . . . Prevented . | . . . . . Kills | -11 -10 -9 -9 -8 ------- Run | Yrd Mat Mat Min Mat Combat Hostiles Destroyed 21 | . 5 . 3 13 Melee 10 | . . . . 10 Guns 9 | . 4 . 2 3 Cannons 1 | . . . 1 . AOE 1 | . 1 . . . Classes Destroyed 10 | 1 3 1 3 2 Recycler 1 | 1 . . . . Operator 1 | . . 1 . . Watcher 3 | . 2 . . 1 Swarmer 4 | . 3 . . 1 Grunt 10 | . 2 . . 8 Duelist 1 | . . . 1 . Sentry 3 | . . . . 3 Demolisher 1 | . . . 1 . Hunter 1 | . . . . 1 Assembled 1 | . . . 1 . Best Kill Streak 4 | 1 4 1 1 4 Combat Bots Only 4 | . 3 . 1 4 Max Kills in Single Turn 2 | 1 2 1 1 1 Gunslinging . | . . . . . Exploded 1 | . 1 . . . Melee 1 | . . . . 1 Uniques/NPCs Destroyed . | . . . . . Combat | -11 -10 -9 -9 -8 -------- Run | Yrd Mat Mat Min Mat Hostile Shots Fired 161 | . 20 . 21 120 Missed 29 | . 6 . 4 19 Damage Taken 2296 | . 202 . 549 1545 Core 655 | . 16 . 76 563 Absorbed by Shields . | . . . . . Redirected to Shielding 102 | . . . 13 89 Core Remaining (%) 91 | 100 93 . 81 . Volleys Fired 41 | 2 14 1 11 13 Largest 2 | 2 2 2 2 1 Hottest 80 | 80 80 80 80 35 Shots Fired 68 | 4 28 2 21 13 Gun 62 | 4 28 2 18 10 Cannon 6 | . . . 3 3 Launcher . | . . . . . Special . | . . . . . Kinetic 25 | . . . 12 13 Thermal 21 | 2 14 1 4 . Explosive . | . . . . . Electromagnetic 22 | 2 14 1 5 . Robot Hit Streak 11 | 1 10 11 7 10 Robot Miss Streak 2 | 2 2 . 2 2 Penetration Max . | . . . . . Secondary Targets . | . . . . . Shots Hit Robots 80 | 2 18 1 12 47 Core Hits 39 | 2 9 1 4 23 Critical Kills . | . . . . . Critical Parts Destroyed . | . . . . . Critical Strikes 1 | . . . . 1 Sever 1 | . . . . 1 Melee Attacks 46 | . . . . 46 Impact . | . . . . . Slashing 46 | . . . . 46 Piercing . | . . . . . Sneak Attacks 1 | . . . . 1 Combat Hostiles . | . . . . . Follow-up Attacks . | . . . . . Damage Inflicted 2019 | 22 379 18 128 1472 Guns 599 | 22 235 18 109 215 Cannons 51 | . . . 19 32 Explosions 144 | . 144 . . . Melee 1225 | . . . . 1225 Ramming . | . . . . . Kinetic 318 | . . . 71 247 Thermal 277 | 10 243 . 24 . Explosive . | . . . . . Electromagnetic 199 | 12 136 18 33 . Impact . | . . . . . Slashing 1225 | . . . . 1225 Piercing . | . . . . . Highest Corruption 1 | . . . 1 . Average Corruption 1 | . . . 1 . Corruption Purged . | . . . . . Corruption Blocked . | . . . . . Overload Shots . | . . . . . Overflow Damage 36 | . . . . 36 Projectiles . | . . . . . Explosions . | . . . . . Melee 36 | . . . . 36 Knockbacks . | . . . . . Impact . | . . . . . Kinetic . | . . . . . Secondary . | . . . . . Self-Inflicted Damage 43 | . 43 . . . Shots 1 | . 1 . . . Rammed . | . . . . . Targets Rammed . | . . . . . Kicked . | . . . . . Crushed . | . . . . . Highest Temperature 205 | 6 205 9 8 17 Average Temperature 48 | 3 63 6 5 17 Received Heat Transfer 752 | . 69 . 26 657 Siege Activations . | . . . . . Robots Corrupted . | . . . . . Combat Hostiles . | . . . . . Parts Fried . | . . . . . Impact Corruptions . | . . . . . Robots Melted . | . . . . . Combat Hostiles . | . . . . . Parts Melted . | . . . . . Heat Transferred 450 | 25 375 . 50 . Parts Sabotaged . | . . . . . Parts Stolen . | . . . . . Parts Stripped . | . . . . . Power Chain Reactions 1 | . 1 . . . Alert | -11 -10 -9 -9 -8 ------- Run | Yrd Mat Mat Min Mat Peak Influence 357 | 5 154 105 50 357 Initial 65 | . 3 65 40 3 Average 72 | 2 73 82 28 108 Maximum Alert Level 1 | . . . . 1 Low Security (%) 93 | 100 100 100 100 83 Level 1 6 | . . . . 16 Level 2 . | . . . . . Level 3 . | . . . . . Level 4 . | . . . . . Level 5 . | . . . . . High Security . | . . . . . Max Security . | . . . . . Squads Dispatched 4 | . . 1 . 3 Investigation . | . . . . . Extermination . | . . . . . Reinforcement 3 | . . 1 . 2 Assault . | . . . . . Garrison 1 | . . . . 1 Intercept . | . . . . . Searches Triggered . | . . . . . Construction Impeded . | . . . . . Haulers Reinforced . | . . . . . Active Scanning Responses . | . . . . . Cargo Convoy Interrupts . | . . . . . Stealth | -11 -10 -9 -9 -8 --------- Run | Yrd Mat Mat Min Mat Distress Signals 5 | . 1 1 . 3 Communications Jammed . | . . . . . Distress Signals . | . . . . . Times Spotted 47 | . 7 1 12 27 Peak Tracking Total 13 | . 3 2 13 11 Tactical Retreats 8 | . . 1 2 5 Traps | -11 -10 -9 -9 -8 ------- Run | Yrd Mat Mat Min Mat Traps Triggered . | . . . . . Indirectly . | . . . . . Trap Hack Attempts . | . . . . . Triggered . | . . . . . Disarmed . | . . . . . Reprogrammed 1 | . 1 . . . Reused . | . . . . . Traps Extracted . | . . . . . Installed . | . . . . . Triggered 1 | . . . 1 . Machines | -11 -10 -9 -9 -8 ---------- Run | Yrd Mat Mat Min Mat Machines Disabled . | . . . . . Max in Single Turn . | . . . . . Machines Repaired . | . . . . . Machines Dismantled . | . . . . . Machines Sabotaged . | . . . . . Overloaded Fab Kills . | . . . . . Hacking | -11 -10 -9 -9 -8 --------- Run | Yrd Mat Mat Min Mat Machines Accessed 4 | . 2 2 . . Terminals 4 | . 2 2 . . Fabricators . | . . . . . Repair Stations . | . . . . . Recycling Units . | . . . . . Scanalyzers . | . . . . . Garrison Access . | . . . . . Total Hacks 10 | . 6 4 . . Successful 4 | . 2 2 . . Failed 6 | . 4 2 . . Catastrophic . | . . . . . Database Lockouts . | . . . . . Manual 1 | . 1 . . . Terminals 10 | . 6 4 . . Fabricators . | . . . . . Repair Stations . | . . . . . Recycling Units . | . . . . . Scanalyzers . | . . . . . Garrison Access . | . . . . . Terminal Hacks 3 | . 1 2 . . Reprogram Traps 1 | . 1 . . . Investigation Status 1 | . . 1 . . Hauler Manifests 1 | . . 1 . . Fabricator Hacks . | . . . . . Repair Station Hacks . | . . . . . Recycling Unit Hacks . | . . . . . Scanalyzer . | . . . . . Garrison Access Hacks . | . . . . . Unauthorized Hacks 1 | . 1 . . . Terminals 1 | . 1 . . . Botnet 1 | . 1 . . . Fabricators . | . . . . . Repair Stations . | . . . . . Recycling Units . | . . . . . Scanalyzers . | . . . . . Garrison Access . | . . . . . Data Cores Recovered . | . . . . . Used . | . . . . . Hacking Detections 3 | . 1 2 . . Full Trace Events . | . . . . . Feedback Events . | . . . . . Feedback Blocked . | . . . . . Robot Schematics Acquired . | . . . . . Robots Built . | . . . . . Authchips . | . . . . . Time . | . . . . . Total Robot Build Rating . | . . . . . Part Schematics Acquired . | . . . . . Parts Built . | . . . . . Authchips . | . . . . . Time . | . . . . . Total Part Build Rating . | . . . . . Parts Repaired . | . . . . . Time . | . . . . . Parts Recycled . | . . . . . Recycled Matter . | . . . . . Retrieved Matter . | . . . . . Retrieved Components . | . . . . . Parts Scanalyzed . | . . . . . Part Schematics Acquired . | . . . . . Parts Damaged . | . . . . . Bothacking | -11 -10 -9 -9 -8 ------------ Run | Yrd Mat Mat Min Mat Used RIF Installer . | . . . . . Robots Hacked . | . . . . . Non-combat . | . . . . . Combat . | . . . . . Robot Hacks Applied . | . . . . . Relay Couplers Released . | . . . . . Fabnet Peak Effective % . | . . . . . Robots Rewired . | . . . . . Allies Hacked . | . . . . . Hacks Repelled . | . . . . . Allies | -11 -10 -9 -9 -8 -------- Run | Yrd Mat Mat Min Mat Total Allies . | . . . . . Largest Group . | . . . . . Highest-Rated Group . | . . . . . Highest-Rated Ally . | . . . . . Total Orders . | . . . . . Ally Attacks . | . . . . . Total Damage . | . . . . . Kills . | . . . . . Allies Corrupted . | . . . . . Allies Melted . | . . . . . Intel | -11 -10 -9 -9 -8 ------- Run | Yrd Mat Mat Min Mat Robot Analysis Total . | . . . . . Derelict Logs Recovered 2 | . . . 2 . Drone Launches . | . . . . . Drone Recoveries . | . . . . . Exploration | -11 -10 -9 -9 -8 ------------- Run | Yrd Mat Mat Min Mat Turns Passed 1669 | 93 368 90 436 682 Spaces Moved 787 | 50 194 54 227 262 Core 15 | 14 . . . 1 Treads 372 | 36 194 54 88 . Legs 313 | . . . 74 239 Wheels 87 | . . . 65 22 Hover . | . . . . . Flight . | . . . . . Fastest Speed 50 | 50 160 160 115 95 Average Speed 166 | 141 160 160 157 185 Slowest Speed 400 | 160 160 160 260 400 Overloaded Moves . | . . . . . Propulsion Burnouts . | . . . . . Robots Hopped . | . . . . . Cave-ins Triggered . | . . . . . Exploration Rate (%) 30 | 4 49 13 51 33 Regions Visited 4 Branch Regions 1 Pre-discovered Areas 1 | . . . 1 . Known Exits Taken . | . . . . . Unknown Exits Taken 4 | 1 1 1 1 . Scrap Searched 1 | . . . 1 . Spaces Dug . | . . . . . Terrain Destroyed 2 | . 2 . . . Melee . | . . . . . Projectile . | . . . . . AOE 2 | . 2 . . . Terrain Rammed . | . . . . . Walls Destroyed . | . . . . . Machines Disabled . | . . . . . Actions | -11 -10 -9 -9 -8 --------- Run | Yrd Mat Mat Min Mat Total 1019 | 69 224 56 288 382 Wait 61 | . 4 . 30 27 Move 783 | 49 193 53 226 262 Hop . | . . . . . Pick Up 38 | 11 9 . 9 9 Fast Attach 12 | 3 1 . 3 5 Attach 17 | 2 1 2 6 6 Detach 2 | . 1 . 1 . Swap 4 | . . . . 4 Drop 15 | 2 1 . 2 10 Fire 41 | 2 14 1 11 13 Melee 46 | . . . . 46 Ram . | . . . . . Kick . | . . . . . Crush . | . . . . . Escape Stasis . | . . . . . Rewire . | . . . . . Trap . | . . . . . Miscellaneous . | . . . . . Route ------- -11/Scrapyard -10/Materials (discovered 2 exits: *Mat / [*Min]) -9/Materials -9/Mines (discovered 3 exits: [*Mat x2] / [*Zio]) -8/Materials (discovered 1 exit: Sto) History --------- Turn | Location | Event 21 | -11/Scrapyard | Discovered new exit (range 14) 94 | -11/Scrapyard | Entered Materials 171 | -10/Materials | Discovered new exit (range 7) 245 | -10/Materials | Discovered new exit (range 10) 306 | -10/Materials | Build established: Mutant 462 | -10/Materials | Entered another Materials area 462 | -9/Materials | Evolved 2 slots: Utility x2 533 | -9/Materials | Discovered new exit (range 13) 552 | -9/Materials | Entered Mines 585 | -9/Mines | Assembled infested the area 641 | -9/Mines | Lost 3 parts (1p1u1w) 777 | -9/Mines | Lost 3 parts (2n1w) 820 | -9/Mines | A Derelict revealed a hidden shortcut to a safe place 824 | -9/Mines | Discovered new exit (range 7) 935 | -9/Mines | Discovered new exit (range 4) 947 | -9/Mines | Learned 4 Materials zone layouts 960 | -9/Mines | Learned location of Storage (-8) 988 | -9/Mines | Entered Materials 988 | -8/Materials | Evolved 2 slots: Utility x2 989 | -8/Materials | Identified exit to Storage 1605 | -8/Materials | Garrison activated, responded to threat 1627 | -8/Materials | Core integrity fell below 50% 1654 | -8/Materials | Core integrity fell below 20% 1670 | -8/Materials | Destroyed by G-47 Trooper with Particle Gun Last Messages --------------- 01637_ G-50 Soldier unfolds itself. 01637_ G-47 Trooper unfolds itself. 01637_ G-50 Soldier destroyed. 01638_ Carbon-fiber Leg destroyed. 01640_ K-01 Serf collects debris. 01641_ Wheel destroyed. 01644_ Structural Scanner destroyed. 01644_ K-01 Serf collects debris. 01650_ Core Shielding destroyed. 01656_ S-10 Pest destroyed. 01657_ K-01 Serf collects debris. 01657_ Katana destroyed. 01657_ Critical hit (Burn: +37). 01662_ G-47 Trooper destroyed. 01662_ R-06 Scavenger collects Lgt. Nuclear Core. 01663_ K-01 Serf collects debris. 01668_ G-50 Soldier destroyed. 01668_ R-06 Scavenger collects Carbon-fiber Leg. 01669_ K-01 Serf collects debris. Map ----- +----------------------------------------------------+ | ?????????????????????????????????????????????????? | | ?????????????????????????????????????????????????? | | ?????????????????????????????????????????????????? | | ?????????????????????????????????????????????????? | | ??????????????????????? ?????????????????????????? | | ??????????????????????? ?????????????????????????? | | ?????????????????????## ?????????????????????????? | | ?????????????????????## ?????????????????????????? | | ?????????????????????## ?????????????????????????? | | ?????????????????????## ?????????????????????????? | | ????????????????????? + ???????????????????????? | | ????????????????????? # ##???????????????????????? | | ????????????????????? # ##??????? ##???????????? | | ????????????????????? # ##???????##+##########???? | | " """ #???????# # ########### ############ | | #???????######### ########### # [+ # | | #########?????## # #! """ #### | | # #?????## [ # # """ !##?# | | # #?????## # # """ ##?# | | # #?????## / + ##?### | | + #?????## # ######## ####+######### | | # ######## # ######## ###% ######## | | # ##"""########## ########+## ! ##??## | | #########"R"########## ### ###### ###### | | #########" "##########k###""" #######+#######[ | | % k r%r@#""" ### [ ### | | #######+################g#""" ### / ### | | ##?## ### #r# ### + + | | #?#T """ ### grg ### / ### | | #?## """ # # "Y" # ###################### | | #??# """ ### """ # + | | #??# #?##" "#########/####+################ | | #??##########?#"R"#???### # #??######## | | #????# #?#"""#?????# # """" #### | | ##????# """ #?#####?????# # """" # # | | ??????# """ #???????????# "" # """" #### | | ??????# """ #???????????# S"" # #??# | | ??????# #???????????# "" # #??# | | ??????# """ #???????????###############??######## | | ??????# ""??????????????????????????????????????# | | ####??# ""?????????????????????????????????????? | | #??# ????????????????????????????????????? | | #??# ""??????????????????????????????????? | | #??# ""???????????????????????????????????#### | | #??# ""???????????????????????????????????#### | | ####??# ?????????????????????????????????????## | | ##########+??????????????????????????????????????# | | ??????????????????????????????????????# | | ??????????????????????????????????????# | | ??????????????????????????????????????# | +----------------------------------------------------+ Best States ------------- Heat Dissipation 31 Energy Generation 14 Energy Capacity 250 Matter Stores 300 Matter Capacity 300 Sight Range 16 Robot Scan Range 14 Terrain Scan Density 10 Core Shielding 20 Evasion (%) 41 Targeting Accuracy 6 Melee Accuracy 5 Recoil Reduction 2 Item Schematics ----------------- None Robot Schematics ------------------ None Fabricated ------------ Nothing Alien Tech Used ----------------- None Achievements -------------- None Challenges ------------ None Game ------ Seed MetafiberLightningSteel Manual? 0 Play Time 00:11:33 Cumulative 82.5 hours Start 2024.10.21 @ 19:40:01 End 2024.10.21 @ 19:50:57 Sessions 1 Manual Loads 0 Difficulty Rogue Special Mode None Game No. 103 Rogue 103 Adventurer 0 Explorer 0 Win Type - Total 0 Types 0/0/0/0/0/0/0/0/0 Lore% 56 Gallery% 46 Achievement% 37 Wizard Run 0 Options --------- Layout 1 ASCII 0 Keyboard 1 Movement Numpad Keybinds 0 Fullscreen 1 Font 24/Smallcaps Map View 50x35 Zoom Use 0% Tactical HUD 1 Map Filters NONE Filters NONE Steam 1 RUN: 5075e985-8a10-449b-896a-02134b4a0d69